[Event "European Women Rapid-ch 2023"]
[Site "Monaco"]
[Date "2024.01.14"]
[Round "6.22"]
[White "Gvetadze, Sofio"]
[Black "Piddubna, Bozhena"]
[Result "0-1"]
[ECO "C78"]
[WhiteElo "2298"]
[BlackElo "2035"]
[Annotator "RC"]
[PlyCount "157"]
[EventDate "2023.12.19"]
[EventType "swiss"]
[EventCountry "MNC"]
[SourceTitle "playchess.com"]
[Source "ChessBase"]
[SourceQuality "1"]
[TimeControl "900+10"]

1. e4 {[%emt 0:00:02]} e5 {[%emt 0:00:01]} 2. Nf3 {[%emt 0:00:02]} Nc6 {[%emt 0:00:02]} 3. Bb5 {[%emt 0:00:03]} a6 {[%emt 0:00:01]} 4. Ba4 {[%emt 0:00:02]} Nf6 {[%emt 0:00:02]} 5. d3 {[%emt 0:00:02]} Bc5 {[%emt 0:00:16]} 6. O-O {[%emt 0:00:05]} d6 {[%emt 0:00:06]} 7. c3 {[%emt 0:00:04]} Ba7 {[%emt 0:00:13]} 8. h3 {[%emt 0:00:13]} Bd7 {[%emt 0:00:08]} 9. Re1 {[%emt 0:00:07]} Qe7 {[%emt 0:00:04]} 10. Nbd2 {[%emt 0:00:42]} h6 {[%emt 0:00:03]} 11. Nf1 {[%emt 0:00:10]} g5 {[%emt 0:00:20]} 12. N3h2 {[%emt 0:00:05]} O-O-O {[%emt 0:00:26]} 13. Ng3 {[%emt 0:00:11]} Rdg8 {[%emt 0:00:36]} 14. Nf5 {[%emt 0:00:24]} Qe8 {[%emt 0:00:25]} 15. Be3 {[%emt 0:00:55]} Bxe3 {[%emt 0:01:22]} 16. Rxe3 {[%emt 0:00:04]} h5 {[%emt 0:00:16]} 17. b4 {[%emt 0:01:23]} Bxf5 {[%emt 0:00:32]} 18. exf5 {[%emt 0:00:13]} Nd5 {[%emt 0:00:01]} 19. Re1 {[%emt 0:00:51]} Nxc3 {[%emt 0:00:08]} 20. Bxc6 {[%emt 0:00:02]} Qxc6 {[%emt 0:00:16]} 21. Qd2 {[%emt 0:01:01]} Nb5 {[%emt 0:00:58]} 22. Rac1 {[%emt 0:00:15]} Qd7 {[%emt 0:00:41]} 23. Rc4 {[%emt 0:00:57]} g4 {[%emt 0:01:18]} 24. hxg4 {[%emt 0:03:54]} hxg4 {[%emt 0:00:03]} 25. Nxg4 {[%emt 0:00:02]} Qxf5 {[%emt 0:00:27]} 26. f3 {[%emt 0:00:18]} Rg6 {[%emt 0:03:01]} 27. Rec1 {[%emt 0:00:11]} c6 {[%emt 0:00:36]} 28. Qe3 {[%emt 0:00:50]} Nd4 {[%emt 0:01:32]} 29. a4 {[%emt 0:01:25]} Qg5 {[%emt 0:05:05]} 30. Qxg5 {[%emt 0:00:39]} Rxg5 {[%emt 0:00:01]} 31. Kf2 {[%emt 0:00:05]} f5 {[%emt 0:00:01]} 32. Ne3 {[%emt 0:00:01]} Kd7 {[%emt 0:00:00]} 33. Re1 {[%emt 0:00:40]} Ne6 {[%emt 0:00:33]} 34. Rd1 {[%emt 0:00:23]} Rh2 {[%emt 0:00:18]} 35. Kg1 {[%emt 0:00:17]} Rh6 {[%emt 0:00:18]} 36. Kf2 {[%emt 0:00:04]} Rh8 {[%emt 0:00:07]} 37. Rcc1 {[%emt 0:00:46]} Rh4 {[%emt 0:00:21]} 38. b5 {[%emt 0:00:28]} Rxa4 {[%emt 0:00:14]} 39. bxc6+ {[%emt 0:00:02]} bxc6 {[%emt 0:00:01]} 40. Nc4 {[%emt 0:00:00]} Ra2+ {[%emt 0:00:02]} 41. Rd2 {[%emt 0:00:05]} Rxd2+ {[%emt 0:00:04]} 42. Nxd2 {[%emt 0:00:01]} Nf4 {[%emt 0:00:01]} 43. Rc3 {[%emt 0:00:32]} Rxg2+ {[%emt 0:00:04]} 44. Ke1 {[%emt 0:00:01]} d5 {[%emt 0:00:36]} 45. Ra3 {[%emt 0:00:07]} Kd6 {[%emt 0:00:08]} 46. Nf1 {[%emt 0:00:10]} Re2+ {[%emt 0:00:19]} 47. Kd1 {[%emt 0:00:01]} Rf2 {[%emt 0:00:01]} 48. Nd2 {[%emt 0:00:17]} a5 {[%emt 0:00:05]} 49. Kc2 {[%emt 0:00:12]} Ne6 {[%emt 0:00:08]} 50. Kc3 {[%emt 0:00:14]} Nd4 {[%emt 0:00:08]} 51. Ra2 {[%emt 0:00:08]} Nxf3 {[%emt 0:00:06]} 52. Nc4+ {[%emt 0:00:05]} dxc4 {[%emt 0:00:13]} 53. Rxf2 {[%emt 0:00:01]} Nd4 {[%emt 0:00:10]} 54. Kxc4 {[%emt 0:00:02]} Ke6 {[%emt 0:00:14]} 55. Kc5 {[%emt 0:00:11]} f4 {[%emt 0:00:05]} 56. Rh2 {[%emt 0:00:06]} Kf5 {[%emt 0:00:02]} 57. Kd6 {[%emt 0:00:05]} f3 {[%emt 0:00:05]} 58. Rh5+ {[%emt 0:00:05]} Kg4 {[%emt 0:00:05]} 59. Rh1 {[%emt 0:00:08]} Kf4 {[%emt 0:00:06]} 60. Rf1 {[%emt 0:00:19]} a4 {[%emt 0:00:03]} 61. Kc5 {[%emt 0:00:11]} a3 {[%emt 0:00:04]} 62. Kb4 {[%emt 0:00:02]} Ke3 {[%emt 0:00:08]} 63. Re1+ {[%emt 0:00:07]} Ne2 {[%emt 0:00:02]} 64. Kxa3 {[%emt 0:00:05]} f2 {[%emt 0:00:02]} 65. Rb1 {[%emt 0:00:05]} Nc3 {[%emt 0:00:07]} 66. Rh1 {[%emt 0:00:01]} Ke2 {[%emt 0:00:06]} 67. Kb4 {[%emt 0:00:02]} Nd5+ {[%emt 0:00:04]} 68. Kc5 {[%emt 0:00:01]} Nf4 {[%emt 0:00:21]} 69. Kxc6 {[%emt 0:00:03]} Kxd3 {[%emt 0:00:05]} 70. Kd6 {[%emt 0:00:02]} e4 {[%emt 0:00:39]} 71. Ke5 {[%emt 0:00:08]} Ng2 {[%emt 0:00:27]} 72. Kf5 {[%emt 0:00:18]} e3 {[%emt 0:00:05]} 73. Ra1 {[%emt 0:00:08]} Ne1 {[%emt 0:00:06]} 74. Ra3+ {[%emt 0:00:28]} Ke2 {[%emt 0:00:02]} 75. Ke4 {[%emt 0:00:02]} f1=Q {[%emt 0:00:33]} 76. Ra2+ {[%emt 0:00:10]} Kd1 {[%emt 0:00:03]} 77. Ra1+ {[%emt 0:00:01]} Kd2 {[%emt 0:00:02]} 78. Ra2+ {[%emt 0:00:02]} Nc2 {[%emt 0:00:01]} 79. Ra1 {[%emt 0:00:03]} 0-1

[Event "European Women Rapid-ch 2023"]
[Site "Monaco"]
[Date "2024.01.14"]
[Round "6.23"]
[White "Caku, Kler"]
[Black "Agrest, Inna"]
[Result "0-1"]
[ECO "C47"]
[WhiteElo "1744"]
[BlackElo "2287"]
[Annotator "RC"]
[PlyCount "58"]
[EventDate "2023.12.19"]
[EventType "swiss"]
[EventCountry "MNC"]
[SourceTitle "playchess.com"]
[Source "ChessBase"]
[SourceQuality "1"]
[TimeControl "900+10"]

1. e4 {[%emt 0:00:01]} e5 {[%emt 0:00:01]} 2. Nf3 {[%emt 0:00:02]} Nc6 {[%emt 0:00:01]} 3. d4 {[%emt 0:00:00]} exd4 {[%emt 0:00:00]} 4. Nxd4 {[%emt 0:00:02]} Nf6 {[%emt 0:00:02]} 5. Nc3 {[%emt 0:00:01]} Bb4 {[%emt 0:00:01]} 6. Nxc6 {[%emt 0:00:02]} bxc6 {[%emt 0:00:01]} 7. Bd3 {[%emt 0:00:01]} O-O {[%emt 0:00:07]} 8. O-O {[%emt 0:00:04]} Re8 {[%emt 0:00:01]} 9. Bg5 {[%emt 0:00:44]} h6 {[%emt 0:00:13]} 10. Bh4 {[%emt 0:00:22]} Rb8 {[%emt 0:00:02]} 11. f4 {[%emt 0:00:41]} Be7 {[%emt 0:00:03]} 12. Qf3 {[%emt 0:01:20]} d5 {[%emt 0:05:03]} 13. e5 {[%emt 0:01:31]} Nd7 {[%emt 0:00:02]} 14. Bf2 {[%emt 0:02:46]} Nc5 {[%emt 0:00:53]} 15. f5 {[%emt 0:00:29]} Nxd3 {[%emt 0:00:44]} 16. cxd3 {[%emt 0:00:32]} Bf8 {[%emt 0:00:13]} 17. Rae1 {[%emt 0:03:05]} Rxb2 {[%emt 0:00:34]} 18. Nd1 {[%emt 0:02:02]} Rxa2 {[%emt 0:00:25]} 19. Qh5 {[%emt 0:00:12]} Qg5 {[%emt 0:00:23]} 20. Qxg5 {[%emt 0:01:45]} hxg5 {[%emt 0:00:02]} 21. Bg3 {[%emt 0:00:58]} Bb4 {[%emt 0:00:45]} 22. Re3 {[%emt 0:00:55]} Bc5 {[%emt 0:00:10]} 23. f6 {[%emt 0:00:25]} gxf6 {[%emt 0:01:26]} 24. Rxf6 {[%emt 0:00:39]} Ra1 {[%emt 0:00:17]} 25. Rf1 {[%emt 0:00:22]} Rxd1 {[%emt 0:01:12]} 26. Rxd1 {[%emt 0:00:02]} Bxe3+ {[%emt 0:00:02]} 27. Kf1 {[%emt 0:00:01]} Bd4 {[%emt 0:00:20]} 28. Rc1 {[%emt 0:00:15]} c5 {[%emt 0:00:55]} 29. Rb1 {[%emt 0:00:19]} Bf5 {[%emt 0:00:21]} 0-1

[Event "European Women Rapid-ch 2023"]
[Site "Monaco"]
[Date "2024.01.14"]
[Round "6.24"]
[White "Haussernot, Cecile"]
[Black "Ciarletta, Iris"]
[Result "1/2-1/2"]
[ECO "B90"]
[WhiteElo "2136"]
[BlackElo "1911"]
[Annotator "NA RC"]
[PlyCount "137"]
[EventDate "2023.12.19"]
[EventType "swiss"]
[EventCountry "MNC"]
[SourceTitle "playchess.com"]
[Source "ChessBase"]
[SourceQuality "1"]
[TimeControl "900+10"]

1. e4 {[%emt 0:03:19]} c5 {[%emt 0:00:04]} 2. Nc3 {[%emt 0:00:40]} d6 {[%emt 0:00:18]} 3. Nge2 {[%emt 0:00:13]} Nf6 {[%emt 0:00:20]} 4. d4 {[%emt 0:00:02]} cxd4 {[%emt 0:00:09]} 5. Nxd4 {[%emt 0:00:02]} a6 {[%emt 0:00:01]} 6. h3 {[%emt 0:00:02]} e5 {[%emt 0:00:54]} 7. Nf3 {[%emt 0:00:03]} Be6 {[%emt 0:00:15]} 8. Ng5 {[%emt 0:00:33]} Qc7 {[%emt 0:00:47]} 9. Nxe6 {[%emt 0:00:10]} fxe6 {[%emt 0:00:02]} 10. g4 {[%emt 0:00:20]} Nc6 {[%emt 0:01:14]} 11. g5 {[%emt 0:00:26]} Nd7 {[%emt 0:00:10]} 12. Be3 {[%emt 0:00:23]} b5 {[%emt 0:00:58]} 13. Qg4 {[%emt 0:00:11]} Nd8 {[%emt 0:01:03]} 14. a3 {[%emt 0:00:35]} Be7 {[%emt 0:01:02]} 15. Qf3 {[%emt 0:01:44]} Nf8 {[%emt 0:01:28]} 16. h4 {[%emt 0:00:12]} Ng6 {[%emt 0:00:57]} 17. h5 {[%emt 0:00:35]} Nf4 {[%emt 0:00:24]} 18. Qg4 {[%emt 0:03:55]} O-O {[%emt 0:00:57]} 19. Bd3 {[%emt 0:00:21]} Rc8 {[%emt 0:00:45]} 20. Ne2 {[%emt 0:00:34]} Qa5+ {[%emt 0:01:13]} 21. Bd2 {[%emt 0:00:46]} Qb6 {[%emt 0:00:39]} 22. Nxf4 {[%emt 0:02:27]} exf4 {[%emt 0:00:40]} 23. Bxf4 {[%emt 0:00:01]} Rc7 {[%emt 0:00:12]} 24. Be3 {[%emt 0:00:18]} Qc6 {[%emt 0:00:15]} 25. f4 {[%emt 0:00:17]} d5 {[%emt 0:00:51]} 26. Qg2 {[%emt 0:00:36]} Bc5 {[%emt 0:00:49]} 27. Bd2 {[%emt 0:00:05]} d4 {[%emt 0:01:32]} 28. Qg4 {[%emt 0:00:23]} Bd6 {[%emt 0:00:20]} 29. Qh4 {[%emt 0:00:22]} Nb7 {[%emt 0:00:48]} 30. b4 {[%emt 0:00:15]} Be7 {[%emt 0:00:44]} 31. O-O {[%emt 0:00:18]} Nd6 {[%emt 0:00:06]} 32. f5 {[%emt 0:00:05]} Nc4 {[%emt 0:00:14]} 33. Bf4 {[%emt 0:00:08]} Rcc8 {[%emt 0:00:15]} 34. Bg3 {[%emt 0:00:12]} Ne3 {[%emt 0:00:05]} 35. Rf2 {[%emt 0:00:01]} h6 {[%emt 0:00:17]} 36. Bf4 {[%emt 0:00:17]} exf5 {[%emt 0:00:05]} 37. exf5 {[%emt 0:00:14]} Nxf5 {[%emt 0:00:05]} 38. Qg4 {[%emt 0:00:03]} Ne3 {[%emt 0:00:12]} 39. Qg3 {[%emt 0:00:16]} hxg5 {[%emt 0:00:10]} 40. Bxe3 {[%emt 0:00:04]} dxe3 {[%emt 0:00:03]} 41. Qxe3 {[%emt 0:00:02]} Rxf2 {[%emt 0:00:04]} 42. Qxf2 {[%emt 0:00:03]} Qf6 {[%emt 0:00:03]} 43. Re1 {[%emt 0:00:16]} Qd6 {[%emt 0:00:38]} 44. Qe3 {[%emt 0:00:28]} Kf8 {[%emt 0:00:11]} 45. Bg6 {[%emt 0:00:07]} Rc7 {[%emt 0:00:09]} 46. Qf3+ {[%emt 0:00:08]} Kg8 {[%emt 0:00:09]} 47. Rf1 {[%emt 0:00:15]} Rc8 {[%emt 0:00:10]} 48. h6 {[%emt 0:00:08]} Qd4+ {[%emt 0:00:04]} 49. Rf2 {[%emt 0:00:03]} Rf8 {[%emt 0:00:08]} 50. Bf7+ {[%emt 0:00:07]} Kh8 {[%emt 0:00:04]} 51. c3 {[%emt 0:00:08]} Qb6 {[%emt 0:00:04]} 52. Qf5 {[%emt 0:00:20]} gxh6 {[%emt 0:00:21]} 53. Qe5+ {[%emt 0:00:05]} Bf6 {[%emt 0:00:11]} 54. Qxf6+ {[%emt 0:00:18]} Qxf6 {[%emt 0:00:00]} 55. Rxf6 {[%emt 0:00:01]} Kg7 {[%emt 0:00:01]} 56. Rg6+ {[%emt 0:00:08]} Kxf7 {[%emt 0:00:03]} 57. Rxh6 {[%emt 0:00:01]} Rc8 {[%emt 0:00:04]} 58. Rxa6 {[%emt 0:00:11]} Rxc3 {[%emt 0:00:01]} 59. Kf2 {[%emt 0:00:12]} g4 {[%emt 0:00:04]} 60. Kg2 {[%emt 0:00:01]} Ke7 {[%emt 0:00:08]} 61. Ra5 {[%emt 0:00:03]} Kd6 {[%emt 0:00:09]} 62. Rxb5 {[%emt 0:00:03]} Rxa3 {[%emt 0:00:01]} 63. Rg5 {[%emt 0:00:04]} g3 {[%emt 0:00:05]} 64. b5 {[%emt 0:00:04]} Rb3 {[%emt 0:00:05]} 65. Kh3 {[%emt 0:00:04]} Kc7 {[%emt 0:00:03]} 66. Rxg3 {[%emt 0:00:03]} Rxg3+ {[%emt 0:00:04]} 67. Kxg3 {[%emt 0:00:02]} Kb6 {[%emt 0:00:01]} 68. Kf3 {[%emt 0:00:01]} Kxb5 {[%emt 0:00:00]} 69. Ke4 {[%emt 0:00:39]} 1/2-1/2

[Event "European Women Rapid-ch 2023"]
[Site "Monaco"]
[Date "2024.01.14"]
[Round "6.25"]
[White "Alfano, Emilie"]
[Black "Calzetta Ruiz, Monica"]
[Result "0-1"]
[ECO "B06"]
[WhiteElo "1828"]
[BlackElo "2241"]
[Annotator "TA"]
[PlyCount "74"]
[EventDate "2023.12.19"]
[EventType "swiss"]
[EventCountry "MNC"]
[SourceTitle "playchess.com"]
[Source "ChessBase"]
[SourceQuality "1"]
[TimeControl "900+10"]

{[%evp 11,74,31,35,0,-25,-21,0,-54,-49,-59,-64,-56,-53,-88,-65,-66,-61,-75,-75,-73,-73,-319,-340,-310,-91,-498,-522,-512,-525,-535,-542,-600,-600,-629,-626,-692,-689,-727,-714,-982,-980,-971,-840,-864,-862,-853,-842,-854,-860,-869,-863,-1000,-915,-1175,-1145,-1575,-1093,-1173,-1168,-1682,-1415,-2293,-2239,-5895,-5704]} 1. e4 {[%emt 0:00:01]} c5 {[%emt 0:00:02]} 2. Nf3 {[%emt 0:00:02]} g6 {[%emt 0:00:02]} 3. c3 {[%emt 0:00:13]} d5 {[%emt 0:00:03]} 4. exd5 {[%emt 0:00:12]} Qxd5 {[%emt 0:00:02]} 5. d4 {[%emt 0:00:08]} Bg7 {[%emt 0:00:03]} 6. Na3 {[%emt 0:00:36]} cxd4 {[%emt 0:00:04]} 7. cxd4 {[%emt 0:00:07]} (7. Nb5 $14 Na6 8. Nbxd4) 7... Nf6 $11 {[%emt 0:00:45]} 8. Bc4 {[%emt 0:00:52]} Qe4+ {[%emt 0:00:05]} 9. Qe2 {[%emt 0:00:08]} ({Vorzuziehen ist} 9. Be3 $11) 9... Qxe2+ $15 {[%emt 0:02:05]} 10. Bxe2 {[%emt 0:00:23]} O-O {[%emt 0:00:07]} 11. O-O {[%emt 0:00:18]} Nc6 {[%emt 0:00:04]} 12. Bf4 {[%emt 0:00:45]} Bg4 {[%emt 0:00:23]} 13. Rfd1 {[%emt 0:00:37]} Rfd8 {[%emt 0:00:07]} 14. Nc2 {[%emt 0:00:35]} Rac8 {[%emt 0:00:08]} 15. h3 {[%emt 0:01:07]} Bf5 {[%emt 0:01:55]} 16. Bd3 {[%emt 0:00:18]} (16. Nce1 $17) 16... Bxd3 $19 {[%emt 0:03:05]} 17. Rxd3 {[%emt 0:00:06] [#]} Nd5 $2 {[%emt 0:00:03]} (17... e5 $1 $19 {[%cal Re5f4] und Schwarz behält klar die Oberhand.} 18. dxe5 Rxd3 19. exf6 Bxf6) 18. Be5 {[%emt 0:00:38][%mdl 8192]} (18. Bg3 $17 {leistet mehr Widerstand.}) 18... Nxe5 {[%emt 0:00:04] Schwarz steht klar auf Gewinn.} 19. dxe5 {[%emt 0:00:12]} Rxc2 {[%emt 0:00:02]} 20. Rad1 {[%emt 0:00:05]} e6 {[%emt 0:00:02]} 21. Rb3 {[%emt 0:00:44]} b6 {[%emt 0:00:05]} 22. Ra3 {[%emt 0:00:05]} a5 {[%emt 0:00:03]} 23. Rb3 {[%emt 0:00:05]} Rdc8 {[%emt 0:00:07] ...a4 ist eine echte Drohung.} 24. a3 {[%emt 0:02:45]} Re2 {[%emt 0:01:13][%cal Oc8c2]} 25. Re1 {[%emt 0:00:27]} Rxe1+ {[%emt 0:00:18]} 26. Nxe1 {[%emt 0:00:04]} Bxe5 {[%emt 0:00:14]} 27. Nd3 {[%emt 0:00:05]} Bd4 {[%emt 0:00:07] [#] Droht ...a4 und aus.} 28. Kf1 {[%emt 0:00:23]} Rc2 {[%emt 0:00:23] Und ...a4 würde nun gewinnen.} 29. Ke1 {[%emt 0:00:17]} Kf8 {[%emt 0:02:07]} 30. Rb5 {[%emt 0:00:29]} Ke7 {[%emt 0:00:25]} 31. Rb3 {[%emt 0:00:30]} Kd6 {[%emt 0:00:01]} 32. g4 {[%emt 0:00:10]} e5 {[%emt 0:00:04]} 33. f3 {[%emt 0:00:14]} Rh2 {[%emt 0:00:08]} 34. a4 {[%emt 0:00:25]} Rxh3 {[%emt 0:00:08] ...Rh1+ wäre nun fies.} 35. Ke2 {[%emt 0:00:02]} Rh2+ {[%emt 0:00:06]} 36. Ke1 {[%emt 0:00:07]} h5 {[%emt 0:00:04] Und jetzt ...h4 wäre schön.} 37. gxh5 {[%emt 0:00:07]} gxh5 {[%emt 0:00:03] Weiß schien mit der Eröffnung nicht zurechtzukommen.   Gewichteter Fehlerwert: Weiß=0.90/Schwarz=0.23 (präzise) .  Verlustzug:     	Weiß=2     	---        Gewinn verpasst:   	---       	Schwarz=1     Fehler:       	Weiß=1     	---        Ungenau:       	Weiß=1     	---        OK:         	Weiß=3     	Schwarz=7     Bester:       	Weiß=1     	Schwarz=2} 0-1

[Event "European Women Rapid-ch 2023"]
[Site "Monaco"]
[Date "2024.01.14"]
[Round "6.26"]
[White "Dubois, Martine"]
[Black "Khurtsilava, Inga"]
[Result "0-1"]
[ECO "B10"]
[WhiteElo "1799"]
[BlackElo "2186"]
[Annotator "RC"]
[PlyCount "114"]
[EventDate "2023.12.19"]
[EventType "swiss"]
[EventCountry "MNC"]
[SourceTitle "playchess.com"]
[Source "ChessBase"]
[SourceQuality "1"]
[TimeControl "900+10"]

1. e4 {[%emt 0:00:01]} c6 {[%emt 0:00:01]} 2. Nf3 {[%emt 0:00:02]} d5 {[%emt 0:00:01]} 3. exd5 {[%emt 0:00:02]} cxd5 {[%emt 0:00:02]} 4. Ne5 {[%emt 0:00:02]} Nc6 {[%emt 0:00:41]} 5. Bb5 {[%emt 0:00:03]} Bd7 {[%emt 0:00:44]} 6. Bxc6 {[%emt 0:00:03]} Bxc6 {[%emt 0:00:04]} 7. d4 {[%emt 0:00:02]} Nf6 {[%emt 0:00:06]} 8. O-O {[%emt 0:00:06]} e6 {[%emt 0:00:06]} 9. Nd2 {[%emt 0:02:19]} Be7 {[%emt 0:00:20]} 10. Ndf3 {[%emt 0:01:06]} Bb5 {[%emt 0:01:00]} 11. Re1 {[%emt 0:00:07]} O-O {[%emt 0:00:04]} 12. a4 {[%emt 0:00:08]} Ba6 {[%emt 0:00:03]} 13. Nd3 {[%emt 0:00:26]} Rc8 {[%emt 0:00:52]} 14. c3 {[%emt 0:01:44]} Ne4 {[%emt 0:00:34]} 15. Nb4 {[%emt 0:01:53]} Bc4 {[%emt 0:02:04]} 16. Ne5 {[%emt 0:00:16]} a5 {[%emt 0:00:08]} 17. Nxc4 {[%emt 0:01:38]} axb4 {[%emt 0:00:18]} 18. Nd2 {[%emt 0:00:02]} bxc3 {[%emt 0:02:59]} 19. Nxe4 {[%emt 0:00:03]} c2 {[%emt 0:00:03]} 20. Qd3 {[%emt 0:01:45]} dxe4 {[%emt 0:00:02]} 21. Qxe4 {[%emt 0:00:18]} Bb4 {[%emt 0:01:25]} 22. Re2 {[%emt 0:00:13]} Qd5 {[%emt 0:00:02]} 23. Qd3 {[%emt 0:00:44]} Rc4 {[%emt 0:03:06]} 24. Be3 {[%emt 0:01:19]} Rfc8 {[%emt 0:00:01]} 25. Rc1 {[%emt 0:00:10]} e5 {[%emt 0:01:39]} 26. Rexc2 {[%emt 0:01:25]} Rxc2 {[%emt 0:01:05]} 27. Rxc2 {[%emt 0:00:02]} Rxc2 {[%emt 0:01:13]} 28. Qxc2 {[%emt 0:00:02]} exd4 {[%emt 0:00:01]} 29. Bd2 {[%emt 0:01:21]} Bf8 {[%emt 0:00:11]} 30. b4 {[%emt 0:00:31]} h6 {[%emt 0:00:08]} 31. h3 {[%emt 0:00:22]} d3 {[%emt 0:00:17]} 32. Qd1 {[%emt 0:00:23]} Qe4 {[%emt 0:00:02]} 33. Kf1 {[%emt 0:00:21]} Bd6 {[%emt 0:00:14]} 34. Qf3 {[%emt 0:00:10]} Qd4 {[%emt 0:00:31]} 35. Qd1 {[%emt 0:00:07]} Qc4 {[%emt 0:00:15]} 36. g3 {[%emt 0:00:25]} Qe4 {[%emt 0:00:16]} 37. f3 {[%emt 0:00:06]} Qc4 {[%emt 0:00:20]} 38. Kg2 {[%emt 0:00:09]} h5 {[%emt 0:00:08]} 39. h4 {[%emt 0:00:16]} Qa2 {[%emt 0:00:09]} 40. Kh3 {[%emt 0:00:08]} Qe6+ {[%emt 0:00:03]} 41. Kg2 {[%emt 0:00:24]} Qe5 {[%emt 0:00:18]} 42. f4 {[%emt 0:00:21]} Qb2 {[%emt 0:00:17]} 43. Kh3 {[%emt 0:00:05]} Qd4 {[%emt 0:00:05]} 44. Qe1 {[%emt 0:00:47]} Kh7 {[%emt 0:00:09]} 45. Bc3 {[%emt 0:00:09]} Qd5 {[%emt 0:00:04]} 46. Bd2 {[%emt 0:00:06]} g6 {[%emt 0:00:04]} 47. Kh2 {[%emt 0:00:07]} Qa2 {[%emt 0:00:05]} 48. Kh3 {[%emt 0:00:02]} Qxa4 {[%emt 0:00:05]} 49. Qb1 {[%emt 0:00:08]} Qd7+ {[%emt 0:00:03]} 50. Kh2 {[%emt 0:00:05]} Qf5 {[%emt 0:00:01]} 51. Qb3 {[%emt 0:00:05]} Kg8 {[%emt 0:00:05]} 52. Qc4 {[%emt 0:00:10]} Bf8 {[%emt 0:00:43]} 53. Qd4 {[%emt 0:00:08]} Bg7 {[%emt 0:00:03]} 54. Qd8+ {[%emt 0:00:12]} Kh7 {[%emt 0:00:01]} 55. Qb6 {[%emt 0:00:19]} Qe4 {[%emt 0:00:05]} 56. Qe3 {[%emt 0:00:03]} Qxe3 {[%emt 0:00:04]} 57. Bxe3 {[%emt 0:00:02]} Bc3 {[%emt 0:00:01]} 0-1

[Event "European Women Rapid-ch 2023"]
[Site "Monaco"]
[Date "2024.01.14"]
[Round "6.27"]
[White "Cramling, Pia"]
[Black "Monpeurt, Cyrielle"]
[Result "1-0"]
[ECO "B38"]
[WhiteElo "2437"]
[BlackElo "2187"]
[Annotator "RC"]
[PlyCount "107"]
[EventDate "2023.12.19"]
[EventType "swiss"]
[EventCountry "MNC"]
[SourceTitle "playchess.com"]
[Source "ChessBase"]
[SourceQuality "1"]
[TimeControl "900+10"]

1. Nf3 {[%emt 0:00:02]} c5 {[%emt 0:00:02]} 2. c4 {[%emt 0:00:02]} g6 {[%emt 0:00:01]} 3. d4 {[%emt 0:00:03]} cxd4 {[%emt 0:00:07]} 4. Nxd4 {[%emt 0:00:01]} Bg7 {[%emt 0:00:03]} 5. e4 {[%emt 0:00:03]} Nc6 {[%emt 0:00:08]} 6. Be3 {[%emt 0:00:02]} d6 {[%emt 0:00:20]} 7. Nc3 {[%emt 0:00:08]} Nf6 {[%emt 0:00:12]} 8. Be2 {[%emt 0:00:03]} O-O {[%emt 0:00:02]} 9. O-O {[%emt 0:00:03]} Bd7 {[%emt 0:00:36]} 10. h3 {[%emt 0:00:08]} Nxd4 {[%emt 0:00:26]} 11. Bxd4 {[%emt 0:00:01]} Bc6 {[%emt 0:00:05]} 12. Qc2 {[%emt 0:00:02]} Nd7 {[%emt 0:00:09]} 13. Bxg7 {[%emt 0:00:24]} Kxg7 {[%emt 0:00:02]} 14. b4 {[%emt 0:00:29]} Nf6 {[%emt 0:01:16]} 15. Rfd1 {[%emt 0:02:40]} Qc7 {[%emt 0:00:04]} 16. Rac1 {[%emt 0:00:26]} Rac8 {[%emt 0:00:03]} 17. Qb2 {[%emt 0:01:00]} Kg8 {[%emt 0:00:28]} 18. Bd3 {[%emt 0:00:03]} Qb6 {[%emt 0:00:42]} 19. a3 {[%emt 0:00:11]} a6 {[%emt 0:00:14]} 20. Qd2 {[%emt 0:00:21]} Qd4 {[%emt 0:02:15]} 21. Qe2 {[%emt 0:00:25]} Qe5 {[%emt 0:00:09]} 22. Qe3 {[%emt 0:00:11]} Nh5 {[%emt 0:00:42]} 23. g3 {[%emt 0:02:02]} Qe6 {[%emt 0:03:21]} 24. b5 {[%emt 0:01:23]} Bd7 {[%emt 0:00:26]} 25. Nd5 {[%emt 0:00:37]} Rc5 {[%emt 0:01:21]} 26. Bf1 {[%emt 0:02:29]} Nf6 {[%emt 0:01:07]} 27. Re1 {[%emt 0:00:22]} axb5 {[%emt 0:00:22]} 28. Nf4 {[%emt 0:00:10]} Qe5 {[%emt 0:00:06]} 29. Nd3 {[%emt 0:00:01]} Qh5 {[%emt 0:00:44]} 30. Nxc5 {[%emt 0:00:03]} dxc5 {[%emt 0:00:01]} 31. e5 {[%emt 0:00:21]} Ne8 {[%emt 0:00:21]} 32. cxb5 {[%emt 0:00:19]} b6 {[%emt 0:00:02]} 33. g4 {[%emt 0:01:02]} Qh4 {[%emt 0:00:04]} 34. Red1 {[%emt 0:00:17]} Be6 {[%emt 0:00:10]} 35. Kg2 {[%emt 0:01:08]} Nc7 {[%emt 0:00:33]} 36. Qg3 {[%emt 0:00:20]} Qh6 {[%emt 0:00:43]} 37. f4 {[%emt 0:00:02]} Nd5 {[%emt 0:00:46]} 38. Kh2 {[%emt 0:01:11]} Qxf4 {[%emt 0:01:04]} 39. Qxf4 {[%emt 0:00:02]} Nxf4 {[%emt 0:00:01]} 40. Bc4 {[%emt 0:00:15]} Ra8 {[%emt 0:00:05]} 41. Rc3 {[%emt 0:01:04]} Ra4 {[%emt 0:00:26]} 42. Bxe6 {[%emt 0:00:02]} Nxe6 {[%emt 0:00:01]} 43. Rd7 {[%emt 0:00:08]} Ra5 {[%emt 0:00:19]} 44. a4 {[%emt 0:00:22]} Rxa4 {[%emt 0:00:05]} 45. Rb7 {[%emt 0:00:18]} Ra2+ {[%emt 0:00:07]} 46. Kh1 {[%emt 0:00:16]} Ra1+ {[%emt 0:00:18]} 47. Kg2 {[%emt 0:00:05]} Nf4+ {[%emt 0:00:04]} 48. Kf3 {[%emt 0:00:04]} Nd5 {[%emt 0:00:01]} 49. Rd3 {[%emt 0:00:20]} e6 {[%emt 0:00:01]} 50. Kg3 {[%emt 0:00:01]} Rb1 {[%emt 0:00:18]} 51. Rf3 {[%emt 0:00:05]} c4 {[%emt 0:01:02]} 52. Rfxf7 {[%emt 0:00:06]} c3 {[%emt 0:00:07]} 53. Rg7+ {[%emt 0:00:03]} Kh8 {[%emt 0:00:06]} 54. Rgd7 {[%emt 0:00:09]} 1-0